bitfinex-derivatives/quotes_BTCF0:USTF0_20250514
["timestamp","ask_amount","ask_price","bid_price","bid_amount"]
[1747235078057,1.5642174,102980.0,102970.0,0.50550749]
[1747235078272,1.5706974,102980.0,102970.0,0.50550749]
[1747235078566,1.32493746,102980.0,102970.0,0.07619182]
[1747235078773,0.194221,102960.0,102950.0,0.1961825]
[1747235078973,1.48158094,102960.0,102950.0,0.0019426]
[1747235079163,0.1942399,102950.0,102940.0,0.29460056]
[1747235079358,1.6423199,102950.0,102940.0,0.29460056]
[1747235079566,1.88807984,102950.0,102940.0,0.29460056]
[1747235080163,2.08197984,102950.0,102940.0,0.29460056]
[1747235080367,1.88773994,102950.0,102940.0,0.29460056]
[1747235080569,2.08197984,102950.0,102940.0,0.29460056]
[1747235080864,2.09155827,102950.0,102940.0,0.29460056]
[1747235081478,1.84579833,102950.0,102940.0,0.29460056]
[1747235081968,2.09255827,102950.0,102940.0,0.30360056]
[1747235082577,2.09155827,102950.0,102940.0,0.29460056]
[1747235082878,2.09355827,102950.0,102940.0,0.29460056]
[1747235083270,1.70871833,102950.0,102940.0,0.29460056]
[1747235083471,1.95447827,102950.0,102940.0,0.29460056]
[1747235084073,1.23727827,102950.0,102940.0,0.29460056]
[1747235084273,1.23727827,102950.0,102940.0,0.36080056]
[1747235084473,1.95583827,102950.0,102940.0,0.36080056]
[1747235085766,0.99151833,102950.0,102940.0,0.36080056]
[1747235085965,0.95851833,102950.0,102940.0,0.55505926]
[1747235086175,0.152,102950.0,102940.0,0.4543587]
[1747235086370,0.5550399,102950.0,102940.0,0.5514855]
[1747235086974,0.3608,102950.0,102940.0,0.64862474]
[1747235087180,0.557021,102960.0,102950.0,0.1942399]
[1747235087478,0.557021,102960.0,102950.0,0.2573399]
[1747235087782,0.557021,102960.0,102950.0,0.35447914]
[1747235088170,0.577021,102960.0,102950.0,0.51647914]
[1747235088369,0.579021,102960.0,102950.0,0.51647914]
[1747235088765,0.578021,102960.0,102950.0,0.51647914]
[1747235088966,0.579021,102960.0,102950.0,0.32223924]
[1747235089170,0.82478094,102960.0,102950.0,0.51647914]
[1747235089367,0.38556547,102960.0,102950.0,0.51647914]
[1747235089567,0.38070729,102960.0,102950.0,0.53166097]
[1747235089773,0.197221,102960.0,102950.0,0.53728168]
[1747235089971,0.198221,102960.0,102950.0,0.53728168]
[1747235090581,0.18850464,102960.0,102950.0,0.53728168]
[1747235091284,0.18850464,102960.0,102950.0,0.90002428]
[1747235092468,0.19850464,102960.0,102950.0,0.90002428]
[1747235092674,0.18850464,102960.0,102950.0,0.90002428]
[1747235093588,0.002,102960.0,102950.0,0.90002428]
[1747235093886,0.196221,102960.0,102950.0,0.90002428]
[1747235094086,0.196221,102960.0,102950.0,0.53922428]
[1747235094987,0.206221,102960.0,102950.0,0.34498438]
[1747235095193,0.206221,102960.0,102950.0,0.53922428]
[1747235095381,0.45198094,102960.0,102950.0,0.53922428]
[1747235095789,0.206221,102960.0,102950.0,0.53922428]
[1747235096690,0.19650465,102960.0,102950.0,0.53922428]
[1747235097281,0.44226459,102960.0,102950.0,0.53922428]
[1747235097474,0.43226459,102960.0,102950.0,0.53922428]
[1747235097783,0.50226459,102960.0,102950.0,0.53922428]
[1747235097990,0.28830465,102960.0,102950.0,0.53922428]
[1747235098185,0.28830465,102960.0,102950.0,0.24784514]
[1747235098186,0.86306459,102960.0,102950.0,0.24784514]
[1747235098488,0.92200465,102960.0,102950.0,0.24784514]
[1747235098790,0.18650465,102960.0,102950.0,0.44208504]
[1747235099191,0.54730465,102960.0,102950.0,0.08584514]
[1747235099379,0.87306459,102960.0,102950.0,0.28008504]
[1747235099884,0.62730465,102960.0,102950.0,0.28008504]
[1747235100074,0.62001723,102960.0,102950.0,0.28008504]
[1747235100488,0.54001723,102960.0,102950.0,0.28008504]
[1747235100685,0.62001723,102960.0,102950.0,0.28008504]
[1747235101291,0.78577717,102960.0,102950.0,0.24784514]
[1747235101487,0.74726214,102960.0,102950.0,0.24784514]
[1747235101694,0.94806214,102960.0,102950.0,0.24784514]
[1747235101881,0.76081723,102960.0,102950.0,0.24784514]
[1747235102081,0.76081723,102960.0,102950.0,0.08022443]
[1747235102287,0.94806214,102960.0,102950.0,0.27446433]
[1747235102488,0.94806214,102960.0,102950.0,0.08022443]
[1747235102793,0.94806214,102960.0,102950.0,0.27446433]
[1747235102994,0.94806214,102960.0,102950.0,0.28008504]
[1747235103287,0.93834529,102960.0,102950.0,0.08584514]
[1747235103594,0.93834529,102960.0,102950.0,0.28008504]
[1747235104406,0.93910479,102960.0,102950.0,0.28008504]
[1747235104589,0.17025988,102960.0,102950.0,0.37721485]
[1747235105303,0.71344667,102960.0,102950.0,0.53921485]
[1747235105598,0.73344667,102960.0,102950.0,0.34497495]
[1747235105803,0.76454667,102960.0,102950.0,0.34497495]
[1747235106104,0.76454667,102960.0,102950.0,0.53359414]
[1747235106605,0.57730176,102960.0,102950.0,0.53359414]
[1747235106902,0.73344667,102960.0,102950.0,0.68159691]
[1747235107095,0.73344667,102960.0,102950.0,0.68721762]
[1747235107297,0.54620176,102960.0,102950.0,0.68721762]
[1747235107497,0.73344667,102960.0,102950.0,0.68721762]
[1747235107710,0.16578151,102960.0,102950.0,0.68721762]
[1747235108398,0.16578151,102960.0,102950.0,1.04801762]
[1747235110801,0.70653945,102960.0,102950.0,0.68721762]
[1747235111007,0.71653945,102960.0,102950.0,0.39584791]
[1747235111194,0.77202349,102960.0,102950.0,0.23384791]
[1747235111606,1.06202349,102960.0,102950.0,0.23384791]
[1747235112104,0.87477858,102960.0,102950.0,0.2282272]
[1747235112298,1.06202349,102960.0,102950.0,0.2282272]
[1747235112802,0.87477858,102960.0,102950.0,0.2282272]
[1747235113002,1.06202349,102960.0,102950.0,0.1651272]
[1747235113198,0.1942399,102950.0,102940.0,0.0319]
[1747235113506,0.1942587,102940.0,102930.0,0.30930123]
[1747235113692,0.8380587,102940.0,102930.0,0.34250123]
[1747235113892,1.02530361,102940.0,102930.0,0.34250123]
[1747235114510,1.02530361,102940.0,102930.0,0.31090123]
[1747235114702,1.02530361,102940.0,102930.0,0.24530123]
[1747235115103,1.0000587,102940.0,102930.0,0.24830123]
[1747235115608,1.18730361,102940.0,102930.0,0.24830123]
[1747235116302,0.8380587,102940.0,102930.0,0.28000123]
[1747235116606,0.5862587,102940.0,102930.0,0.53797883]
[1747235116795,0.1942587,102940.0,102930.0,1.08602632]
[1747235116996,0.1942587,102940.0,102930.0,1.32885392]
[1747235117210,0.1942587,102940.0,102930.0,1.24952418]
[1747235117405,0.2760125,102950.0,102940.0,0.1942587]
[1747235117617,0.6368125,102950.0,102940.0,0.2573587]
[1747235118004,0.6036125,102950.0,102940.0,0.35450738]
[1747235118305,0.6036125,102950.0,102940.0,0.32224868]
[1747235118620,0.87405741,102950.0,102940.0,0.2251]
[1747235118918,0.90785741,102950.0,102940.0,0.2251]
[1747235119100,0.90785741,102950.0,102940.0,0.0631]
[1747235119301,0.7206125,102950.0,102940.0,0.0631]
[1747235119515,1.10785741,102950.0,102940.0,0.0317]
[1747235120314,1.2882125,102950.0,102940.0,0.0648]
[1747235120514,1.47545741,102950.0,102940.0,0.0648]
[1747235120904,1.10885741,102950.0,102940.0,0.0648]
[1747235121107,1.47617741,102950.0,102940.0,0.0648]
[1747235121310,1.2889325,102950.0,102940.0,0.0648]
[1747235121511,1.47617741,102950.0,102940.0,0.0648]
[1747235122609,0.9216125,102950.0,102940.0,0.2590587]
[1747235122815,0.7216125,102950.0,102940.0,0.0648]
[1747235123201,0.6888125,102950.0,102940.0,0.26467941]
[1747235123411,0.6888125,102950.0,102940.0,0.07042071]
[1747235123716,0.6888125,102950.0,102940.0,0.26467941]
[1747235123919,0.6888125,102950.0,102940.0,0.07042071]
[1747235124126,0.6888125,102950.0,102940.0,0.26467941]
[1747235124410,0.87605741,102950.0,102940.0,0.26467941]
[1747235124721,0.87605741,102950.0,102940.0,0.07042071]
[1747235124905,0.90865741,102950.0,102940.0,0.07042071]
[1747235125099,1.22865741,102950.0,102940.0,0.07042071]
[1747235125309,1.22865741,102950.0,102940.0,0.0648]
[1747235125716,1.22865741,102950.0,102940.0,0.07998505]
[1747235126019,1.0414125,102950.0,102940.0,0.07998505]
[1747235126618,1.36225741,102950.0,102940.0,0.07998505]
[1747235127021,1.59225741,102950.0,102940.0,0.07998505]
[1747235127415,1.59225741,102950.0,102940.0,0.04688505]
[1747235127722,2.28605741,102950.0,102940.0,5e-08]
[1747235127929,2.30625741,102950.0,102940.0,5e-08]
[1747235128217,2.46825741,102950.0,102940.0,5e-08]
[1747235130422,2.46825741,102950.0,102940.0,0.00562076]
[1747235130611,2.10465741,102950.0,102940.0,0.00562076]
[1747235130916,2.46797741,102950.0,102940.0,0.00562076]
[1747235131105,2.30597741,102950.0,102940.0,0.00562076]
[1747235132121,2.46797741,102950.0,102940.0,0.00562076]
[1747235132718,2.46797741,102950.0,102940.0,0.03712076]
[1747235133222,2.10465741,102950.0,102940.0,0.03712076]
[1747235133721,2.83449741,102950.0,102940.0,0.03712076]
[1747235133922,2.83449741,102950.0,102940.0,0.03736363]
[1747235134222,2.67249741,102950.0,102940.0,0.03736363]
[1747235134524,2.67249741,102950.0,102940.0,0.03174292]
[1747235135126,2.67249741,102950.0,102940.0,0.00024292]
[1747235136022,2.65505741,102950.0,102940.0,0.06344292]
[1747235136219,2.65505741,102950.0,102940.0,0.09514292]
[1747235137414,2.65581691,102950.0,102940.0,0.09514292]
[1747235137708,2.468572,102950.0,102940.0,0.09514292]
[1747235138012,2.65581691,102950.0,102940.0,0.03194292]
[1747235138220,0.1942587,102940.0,102930.0,0.0065922]
[1747235138422,1.19560361,102940.0,102930.0,0.0065922]
[1747235138619,0.1942776,102930.0,102920.0,0.07477633]
[1747235138819,1.11542251,102930.0,102920.0,0.07477633]
[1747235140409,0.1942965,102920.0,102910.0,0.03414335]
[1747235140614,1.45922141,102920.0,102910.0,0.06454335]
[1747235140823,1.45960116,102920.0,102910.0,0.06454335]
[1747235141017,1.27235625,102920.0,102910.0,0.06454335]
[1747235141215,1.45960116,102920.0,102910.0,0.06454335]
[1747235141623,1.46927148,102920.0,102910.0,0.06454335]
[1747235142110,0.29037975,102920.0,102910.0,0.90407122]
[1747235142311,0.95837211,102940.0,102910.0,0.45991091]
[1747235142610,1.10314141,102920.0,102910.0,0.00194335]
[1747235142815,1.22314141,102920.0,102910.0,0.03344335]
[1747235143108,1.28594141,102920.0,102910.0,0.03344335]
[1747235143312,1.28694141,102920.0,102910.0,0.03844335]
[1747235144026,1.28794141,102920.0,102910.0,0.04344335]
[1747235144231,1.48794141,102920.0,102910.0,0.04344335]
[1747235144925,1.50254353,102920.0,102910.0,0.04344335]
[1747235145626,1.47004353,102920.0,102910.0,0.23775875]
[1747235145926,1.64991365,102920.0,102910.0,0.23775875]
[1747235146328,1.83991365,102920.0,102910.0,0.23775875]
[1747235146625,1.83975365,102920.0,102910.0,0.23775875]
[1747235146820,1.83975365,102920.0,102910.0,0.04344335]
[1747235147015,1.83975365,102920.0,102910.0,0.23775875]
[1747235147931,1.83975365,102920.0,102910.0,0.04344335]
[1747235148425,1.83975365,102920.0,102910.0,0.23775875]
[1747235148627,1.84395365,102920.0,102910.0,0.23775875]
[1747235148827,1.84395365,102920.0,102910.0,0.04344335]
[1747235149127,1.84395365,102920.0,102910.0,0.23775875]
[1747235149329,1.26236874,102920.0,102910.0,0.23775875]
[1747235149522,0.94236874,102920.0,102910.0,0.23775875]
[1747235149830,1.12961365,102920.0,102910.0,0.23775875]
[1747235150029,0.94236874,102920.0,102910.0,0.23775875]
[1747235150230,0.94236874,102920.0,102910.0,0.41494719]
[1747235150624,0.099348,102920.0,102910.0,1.40732766]
[1747235150924,0.00447,102930.0,102920.0,0.1942965]
[1747235151130,0.00447,102930.0,102920.0,2.55964141]
[1747235151324,0.00447,102930.0,102920.0,2.92198577]
[1747235151525,0.00121,102930.0,102920.0,3.01914389]
[1747235151727,0.1942639,102940.0,102930.0,0.339958]
[1747235151920,0.1942639,102940.0,102930.0,0.462158]
[1747235152228,0.1942639,102940.0,102930.0,0.63934236]
[1747235152437,0.1942639,102940.0,102930.0,0.73649104]
[1747235153636,0.1942639,102940.0,102930.0,0.68992324]
[1747235153836,0.1942639,102940.0,102930.0,0.69192324]
[1747235154530,0.2216139,102940.0,102930.0,0.69192324]
[1747235155832,0.2416139,102940.0,102930.0,0.69192324]
[1747235156422,0.2216139,102940.0,102930.0,0.69192324]
[1747235156624,0.2216139,102940.0,102930.0,1.05272324]
[1747235156825,0.2216087,102940.0,102930.0,1.23996815]
[1747235157330,0.2216087,102940.0,102930.0,1.05272324]
[1747235157634,0.40885361,102940.0,102930.0,0.69192324]
[1747235159331,1.21395361,102940.0,102930.0,0.24566196]
[1747235159534,1.21395361,102940.0,102930.0,0.05138436]
[1747235160141,1.21395361,102940.0,102930.0,0.24566196]
[1747235160434,1.21395361,102940.0,102930.0,0.05138436]
[1747235160638,1.21395361,102940.0,102930.0,0.24566196]
[1747235160835,1.21395361,102940.0,102930.0,0.27706196]
[1747235161228,1.18335361,102940.0,102930.0,0.27706196]
[1747235161823,0.2316087,102940.0,102930.0,0.27706196]
[1747235162026,0.6227087,102940.0,102930.0,0.35706196]
[1747235162332,0.80995361,102940.0,102930.0,0.27706196]
[1747235162539,0.6227087,102940.0,102930.0,0.27706196]
[1747235162835,0.80995361,102940.0,102930.0,0.27706196]
[1747235163032,0.6227087,102940.0,102930.0,0.27706196]
[1747235163226,0.2619087,102940.0,102930.0,0.27706196]
[1747235163423,0.2316087,102940.0,102930.0,0.27706196]
[1747235163633,0.2216087,102940.0,102930.0,0.38421064]
[1747235164139,0.2216087,102940.0,102930.0,0.54621064]
[1747235164334,0.2216087,102940.0,102930.0,1.09425555]
[1747235164533,0.02735,102940.0,102930.0,1.09425555]
[1747235164736,0.2216087,102940.0,102930.0,1.09425555]
[1747235165037,0.2216087,102940.0,102930.0,0.90701064]
[1747235165428,0.2216087,102940.0,102930.0,0.54621064]
[1747235165626,0.76965361,102940.0,102930.0,0.34193304]
[1747235165833,1.13225361,102940.0,102930.0,0.24478436]
[1747235166037,0.9776087,102940.0,102930.0,0.43906196]
[1747235166240,0.6150087,102940.0,102930.0,0.46421064]
[1747235166431,0.02735,102940.0,102930.0,1.01225555]
[1747235166637,0.2216087,102940.0,102930.0,1.01225555]
[1747235167239,0.2216087,102940.0,102930.0,1.17425555]
[1747235167449,0.2216087,102940.0,102930.0,2.67425555]
[1747235167738,0.02735,102940.0,102930.0,2.95864846]
[1747235167927,0.2435626,102950.0,102940.0,0.1942587]
[1747235168132,0.2435626,102950.0,102940.0,1.08700361]
[1747235168333,0.2435626,102950.0,102940.0,0.72620361]
[1747235168626,0.2435626,102950.0,102940.0,0.6512823]
[1747235168937,0.002,102960.0,102940.0,1.70428851]
[1747235169146,0.002,102960.0,102950.0,0.80468481]
[1747235169335,0.002,102960.0,102950.0,0.89468481]
[1747235169336,0.196221,102960.0,102950.0,0.89468481]
[1747235169532,0.002,102960.0,102950.0,1.00699717]
[1747235169728,0.002,102960.0,102950.0,1.1041317]
[1747235170032,0.196221,102960.0,102950.0,1.1041317]
[1747235170234,0.196221,102960.0,102950.0,1.2661317]
[1747235171245,0.196221,102960.0,102950.0,0.98175879]
[1747235171436,0.557021,102960.0,102950.0,0.62095879]
[1747235171635,0.567021,102960.0,102950.0,0.62095879]
[1747235171839,0.767021,102960.0,102950.0,0.62095879]
[1747235172048,0.797821,102960.0,102950.0,0.62095879]
[1747235172343,0.237021,102960.0,102950.0,0.62095568]
[1747235172539,0.597821,102960.0,102950.0,0.62095568]
[1747235172741,0.597821,102960.0,102950.0,0.80820059]
[1747235172944,0.597821,102960.0,102950.0,2.30820059]
[1747235173532,0.587821,102960.0,102950.0,2.12095568]
[1747235173738,0.619821,102960.0,102950.0,2.30820059]
[1747235174147,0.196221,102960.0,102950.0,2.66900059]
[1747235174346,0.002,102960.0,102950.0,2.76612859]
[1747235174643,0.5382494,102980.0,102960.0,0.3398588]
[1747235174847,0.1942036,102970.0,102960.0,0.47654005]
[1747235175036,0.1942036,102970.0,102960.0,0.66378496]
[1747235175239,0.1942036,102970.0,102960.0,0.92291477]
[1747235175441,0.6520919,102980.0,102970.0,0.1942021]
[1747235175644,1.0763693,102990.0,102980.0,0.1941833]
[1747235175837,0.13,102990.0,102980.0,0.83222821]
[1747235176035,0.1941644,102990.0,102980.0,0.74567699]
[1747235176230,0.1941644,102990.0,102980.0,0.64561333]
[1747235176431,0.2274644,102990.0,102980.0,0.73561333]
[1747235176837,0.1941644,102990.0,102980.0,0.73561333]
[1747235177341,0.2274644,102990.0,102980.0,0.73561333]
[1747235177541,0.8042644,102990.0,102980.0,0.63952663]
[1747235177743,0.8042644,102990.0,102980.0,0.64052663]
[1747235177939,1.02170931,102990.0,102980.0,0.17918125]
[1747235178247,1.71774931,102990.0,102980.0,0.01718125]
[1747235178448,0.8344644,102990.0,102980.0,0.01718125]
[1747235178745,1.71738931,102990.0,102980.0,0.01718125]
[1747235179152,1.71138931,102990.0,102980.0,0.01718125]
[1747235179336,0.8284644,102990.0,102980.0,0.21136455]
[1747235179537,1.5232644,102990.0,102980.0,0.21136455]
[1747235179737,1.5232644,102990.0,102980.0,0.01718125]
[1747235180031,1.5271444,102990.0,102980.0,0.01618125]
[1747235180445,0.8363444,102990.0,102980.0,0.01518125]
[1747235180637,1.02358931,102990.0,102980.0,0.01518125]
[1747235180832,1.02258931,102990.0,102980.0,0.01518125]
[1747235181043,1.02158931,102990.0,102980.0,0.01518125]
[1747235181244,1.02158931,102990.0,102980.0,0.02080196]
[1747235181939,0.8343444,102990.0,102980.0,0.31208677]
[1747235182142,0.8343444,102990.0,102980.0,0.47408677]
[1747235182336,1.02158931,102990.0,102980.0,0.27990347]
[1747235182542,1.02158931,102990.0,102980.0,0.18280196]
[1747235182844,1.20883422,102990.0,102980.0,0.18280196]
[1747235183238,1.02158931,102990.0,102980.0,0.02080196]
[1747235184642,1.02258931,102990.0,102980.0,0.02080196]
[1747235185544,1.02258931,102990.0,102950.0,0.0019426]
[1747235185545,1.36288982,102990.0,102950.0,0.0019426]
[1747235185750,1.10306591,102960.0,102950.0,0.0019426]
[1747235185940,1.77046591,102960.0,102950.0,0.0019426]
[1747235186134,1.86476591,102960.0,102950.0,0.1961825]
[1747235186452,0.679321,102960.0,102950.0,0.38342741]
[1747235186747,0.679321,102960.0,102950.0,0.41642741]
[1747235187046,1.14656591,102960.0,102950.0,0.0019426]
[1747235187438,1.33381082,102960.0,102950.0,0.0049426]
[1747235187643,1.14656591,102960.0,102950.0,0.0049426]
[1747235187847,0.959321,102960.0,102950.0,0.0049426]
[1747235188148,1.48252591,102960.0,102950.0,0.0029426]
[1747235188350,1.49222428,102960.0,102950.0,0.0029426]
[1747235188545,1.49222428,102960.0,102950.0,0.1991825]
[1747235188744,1.09497937,102960.0,102950.0,0.2321825]
[1747235189146,1.28186428,102960.0,102950.0,0.1999426]
[1747235189347,1.28186428,102960.0,102950.0,0.1979426]
[1747235189963,1.28186428,102960.0,102950.0,0.1649426]
[1747235190155,1.53186428,102960.0,102950.0,0.0029426]
[1747235191345,1.53186428,102960.0,102950.0,0.0663426]
[1747235191654,1.34245937,102960.0,102950.0,0.0663426]
[1747235191951,1.52970428,102960.0,102950.0,0.0663426]
[1747235192155,1.52970428,102960.0,102950.0,0.1976426]
[1747235192453,1.52970428,102960.0,102950.0,0.1649426]
[1747235193047,1.52970428,102960.0,102950.0,0.1956426]
[1747235193245,1.34245937,102960.0,102950.0,0.2608825]
[1747235193444,1.14245937,102960.0,102950.0,0.2608825]
[1747235193640,1.14245937,102960.0,102950.0,0.0666426]
[1747235193641,1.37169937,102960.0,102950.0,0.0666426]
[1747235194050,1.03901937,102960.0,102950.0,0.0666426]
[1747235194246,1.37109937,102960.0,102950.0,0.2286426]
[1747235195259,1.55834428,102960.0,102950.0,0.1649426]
[1747235196250,1.55834428,102960.0,102950.0,0.0029426]
[1747235196549,1.55834428,102960.0,102950.0,0.0665426]
[1747235196751,1.22626428,102960.0,102950.0,0.0029426]
[1747235196954,1.03901937,102960.0,102950.0,0.0665426]
[1747235197153,1.37221937,102960.0,102950.0,0.0665426]
[1747235197355,1.032521,102960.0,102950.0,0.2607825]
[1747235197648,1.212521,102960.0,102950.0,0.0665426]
[1747235198452,0.194221,102960.0,102950.0,0.63515722]
[1747235198656,0.6821252,102970.0,102960.0,0.194221]
[1747235198857,0.6521252,102970.0,102960.0,2.03326591]
[1747235199259,0.66192919,102970.0,102960.0,1.88625081]
[1747235199646,0.6821252,102970.0,102960.0,1.88625081]
[1747235200361,0.6841252,102970.0,102960.0,1.88625081]
[1747235201362,0.6841252,102970.0,102960.0,0.19202981]
[1747235201363,1.25137011,102970.0,102960.0,0.19202981]
[1747235201557,1.28437011,102970.0,102960.0,0.0949]
[1747235202159,1.0971252,102970.0,102960.0,0.0949]
[1747235203155,1.0661252,102970.0,102960.0,0.289121]
[1747235203365,0.6661252,102970.0,102960.0,0.57348629]
[1747235203560,0.3053252,102970.0,102960.0,0.57348629]
[1747235203861,0.6661252,102970.0,102960.0,0.57348629]
[1747235204068,0.6661252,102970.0,102960.0,0.38624138]
[1747235204455,0.2467714,102970.0,102960.0,1.02428629]
[1747235204770,0.004,102970.0,102960.0,1.3086512]
[1747235205063,0.2912873,102980.0,102970.0,0.1942021]
[1747235205265,0.700611,102990.0,102980.0,0.1941833]
[1747235205460,0.700611,102990.0,102980.0,0.2565833]
[1747235205655,0.700611,102990.0,102980.0,0.35369424]
[1747235205967,0.700611,102990.0,102980.0,0.54093915]
[1747235206367,0.700611,102990.0,102980.0,0.35369424]
[1747235206971,0.705611,102990.0,102980.0,0.63193915]
[1747235207267,0.705611,102990.0,102980.0,0.54193915]
[1747235207969,0.709611,102990.0,102980.0,0.54293915]
[1747235208458,0.709611,102990.0,102980.0,0.38629424]
[1747235209557,0.709611,102990.0,102980.0,0.19211094]
[1747235209762,0.89685591,102990.0,102980.0,0.19211094]
[1747235210072,1.11685591,102990.0,102980.0,0.0634]
[1747235210265,1.14825591,102990.0,102980.0,0.2575833]
[1747235210467,1.283531,102990.0,102980.0,0.2575833]
[1747235210663,0.899611,102990.0,102980.0,0.44482821]
[1747235210970,1.221891,102990.0,102980.0,0.54192972]
[1747235211270,0.709611,102990.0,102980.0,0.63192972]
[1747235211470,0.709611,102990.0,102980.0,0.44468481]
[1747235211768,0.709611,102990.0,102980.0,0.63192972]
[1747235211969,0.3002665,102990.0,102980.0,0.63192972]
[1747235212172,0.2031644,102990.0,102980.0,0.63192972]
[1747235212574,0.2031644,102990.0,102980.0,2.13192972]
[1747235212773,0.2031644,102990.0,102980.0,1.94468481]
[1747235212975,0.5639644,102990.0,102980.0,1.94468481]
[1747235213370,0.7239644,102990.0,102980.0,1.94468481]
[1747235213671,0.7239644,102990.0,102980.0,1.75050151]
[1747235213672,0.7544644,102990.0,102980.0,1.75050151]
[1747235213872,0.7869644,102990.0,102980.0,1.94468481]
[1747235214171,1.29456931,102990.0,102980.0,0.35468481]
[1747235214467,1.32576931,102990.0,102980.0,0.16050151]
[1747235214675,1.47576931,102990.0,102980.0,0.2575833]
[1747235215173,1.2885244,102990.0,102980.0,0.0634]
[1747235215365,1.2885244,102990.0,102980.0,0.2575833]
[1747235215673,1.2885244,102990.0,102980.0,0.0634]
[1747235215871,1.2885244,102990.0,102980.0,0.2575833]
[1747235216667,0.8739644,102990.0,102980.0,0.2575833]
[1747235216967,0.8739644,102990.0,102980.0,0.63192972]
[1747235216968,0.5639644,102990.0,102980.0,0.63192972]
[1747235217171,0.9137644,102990.0,102980.0,0.63192972]
[1747235217574,0.9137644,102990.0,102980.0,0.44468481]
[1747235217763,0.9137644,102990.0,102980.0,0.63192972]
[1747235217965,0.5959644,102990.0,102980.0,0.63192972]
[1747235218266,0.5959644,102990.0,102980.0,0.44468481]
[1747235218267,0.9130444,102990.0,102980.0,0.44468481]
[1747235218466,0.9440244,102990.0,102980.0,0.44468481]
[1747235218863,1.13126931,102990.0,102980.0,0.18910151]
[1747235219178,0.5854644,102990.0,102980.0,0.83422821]
[1747235219371,0.2355644,102990.0,102980.0,0.93132972]
[1747235219571,0.2355644,102990.0,102980.0,0.99462972]
[1747235219774,0.3055644,102990.0,102980.0,0.52320151]
[1747235219981,0.6991644,102990.0,102980.0,0.35658481]
[1747235220171,0.6991644,102990.0,102980.0,0.16240151]
[1747235220566,1.20208931,102990.0,102980.0,0.35658481]
[1747235220769,0.88640931,102990.0,102980.0,0.35658481]
[1747235220970,1.0147244,102990.0,102980.0,0.35658481]
[1747235221170,1.0147244,102990.0,102980.0,0.16240151]
[1747235221371,1.0147244,102990.0,102980.0,0.35658481]
[1747235221573,1.0117244,102990.0,102980.0,0.35558481]
[1747235221770,0.001,102990.0,102980.0,0.99262972]
[1747235222069,0.1961644,102990.0,102980.0,0.99262972]
[1747235222675,0.002,102990.0,102980.0,1.17987463]
[1747235222870,0.002,102990.0,102980.0,1.52697462]
[1747235223479,0.001,102990.0,102980.0,1.33972971]
[1747235223669,0.001,102990.0,102980.0,1.52697462]
[1747235223873,0.3234834,103020.0,103010.0,0.1941267]
[1747235224172,0.2436531,103020.0,103010.0,0.47137161]
[1747235224380,0.2436531,103020.0,103010.0,0.56407161]
[1747235224581,0.001,103020.0,103010.0,1.03690087]
[1747235224776,0.001,103020.0,103010.0,1.32121778]
[1747235224977,0.0014569,103030.0,103020.0,0.1941079]
[1747235225172,0.002,103040.0,103030.0,0.194089]
[1747235225173,0.1960702,103040.0,103030.0,0.194089]
[1747235225478,0.1960702,103040.0,103030.0,0.89733391]
[1747235225675,0.1960702,103040.0,103030.0,0.6335883]
[1747235225870,0.2274702,103040.0,103030.0,0.6335883]
[1747235226078,0.2274702,103040.0,103030.0,0.44634339]
[1747235226267,0.8982702,103040.0,103030.0,0.44634339]
[1747235226487,0.9315702,103040.0,103030.0,0.44634339]
[1747235226666,0.9315702,103040.0,103030.0,0.16225439]
[1747235226869,1.11881511,103040.0,103030.0,0.0331]
[1747235227068,0.194089,103030.0,103020.0,0.78068591]
[1747235227263,0.729589,103030.0,103020.0,0.626541]
[1747235227569,0.729589,103030.0,103020.0,0.35634949]
[1747235228074,0.972189,103030.0,103020.0,0.35634949]
[1747235228270,1.32543021,103030.0,103000.0,0.0485345]
[1747235228477,0.7655982,103020.0,103010.0,0.2256267]
[1747235228672,0.9041292,103020.0,103010.0,0.25114491]
[1747235228872,0.9041292,103020.0,103010.0,0.0639]
[1747235229682,0.9071292,103020.0,103010.0,0.0639]
[1747235230075,1.1671292,103020.0,103010.0,0.0639]
[1747235230376,0.6715362,103020.0,103010.0,0.63234485]
[1747235230577,0.2302079,103020.0,103010.0,0.64693371]
[1747235231173,0.2332079,103020.0,103010.0,0.64693371]
[1747235231371,0.2652079,103020.0,103010.0,0.64693371]
[1747235231875,0.2622079,103020.0,103010.0,0.64693371]
[1747235232076,0.2612079,103020.0,103010.0,0.64693371]
[1747235233274,0.6220079,103020.0,103010.0,0.64693371]
[1747235233484,0.6220079,103020.0,103010.0,0.3696888]
[1747235233774,0.6420079,103020.0,103010.0,0.44509994]
[1747235233976,0.6420079,103020.0,103010.0,0.35509994]
[1747235236174,0.1941267,103010.0,103000.0,0.2912114]
[1747235236380,0.6180267,103010.0,103000.0,0.4918472]
[1747235236583,0.6180267,103010.0,103000.0,0.32201504]
[1747235236881,0.9392267,103010.0,103000.0,0.2249418]
[1747235237077,0.9392267,103010.0,103000.0,0.35332446]
[1747235237675,0.9392267,103010.0,103000.0,0.35432446]
[1747235237979,0.9392267,103010.0,103000.0,0.12888266]
[1747235238286,1.2458267,103010.0,103000.0,0.1951456]
[1747235238474,1.2458267,103010.0,103000.0,0.2282456]
[1747235238674,1.2458267,103010.0,103000.0,0.2598456]
[1747235238875,1.2458267,103010.0,103000.0,0.44709051]
[1747235239083,0.9558267,103010.0,103000.0,0.47809051]
[1747235239383,0.9192267,103010.0,103000.0,0.57517317]
[1747235239987,0.6308,103010.0,103000.0,0.57417317]
[1747235240173,0.5865217,103020.0,103010.0,0.1941267]
[1747235240484,0.7265217,103020.0,103010.0,0.53597161]
[1747235240885,0.7265217,103020.0,103010.0,0.63304485]
[1747235241084,0.7265217,103020.0,103010.0,0.54304485]
[1747235241278,0.7596217,103020.0,103010.0,0.63304485]
[1747235242276,0.7606217,103020.0,103010.0,0.63304485]
[1747235242583,0.7275217,103020.0,103010.0,0.63304485]
[1747235242984,0.7285217,103020.0,103010.0,0.63304485]
[1747235243585,0.7285217,103020.0,103010.0,0.54304485]
[1747235244385,0.7285217,103020.0,103010.0,0.63304485]
[1747235244592,0.002,103020.0,103010.0,0.99384485]
[1747235244781,0.1961079,103020.0,103010.0,0.99384485]
[1747235244975,0.002,103020.0,103010.0,0.99384485]
[1747235245180,0.1961079,103020.0,103010.0,0.99384485]
[1747235245589,0.1951079,103020.0,103010.0,2.49384485]
[1747235245789,0.1951079,103020.0,103010.0,2.49484485]
[1747235245985,0.3608,103030.0,103020.0,0.1941079]
[1747235246180,0.554889,103030.0,103020.0,0.75169772]
[1747235246586,0.3608,103030.0,103020.0,0.84877096]
[1747235246788,0.554889,103030.0,103020.0,0.84877096]
[1747235246983,0.555889,103030.0,103020.0,0.84877096]
[1747235247188,0.001,103030.0,103020.0,1.20957096]
[1747235247383,0.001,103030.0,103020.0,1.51761096]
[1747235247578,0.002,103030.0,103020.0,1.51761096]